bitfinex/quotes_SOLUSD_20250929
["timestamp","ask_amount","ask_price","bid_price","bid_amount"]
[1759146699062,26.0,207.59,207.53,4.81858044]
[1759146699369,26.0,207.59,207.53,5.47858044]
[1759146700679,26.0,207.57,207.53,5.47858044]
[1759146700973,26.48,207.57,207.53,4.81858044]
[1759146701180,26.0,207.57,207.53,5.47858044]
[1759146701582,26.0,207.57,207.54,0.66]
[1759146702276,0.48,207.56,207.5,39.18996753]
[1759146702485,0.48,207.56,207.5,42.57905742]
[1759146702695,0.48,207.56,207.49,5.47950297]
[1759146702979,16.86183735,207.57,207.48,14.82289566]
[1759146702980,5.29770766,207.57,207.48,19.64257621]
[1759146703172,5.29770766,207.57,207.5,0.66]
[1759146703483,26.0,207.55,207.5,0.66]
[1759146703683,26.48,207.55,207.5,0.66]
[1759146704666,26.0,207.55,207.5,5.47915255]
[1759146704867,26.0,207.55,207.51,0.66]
[1759146705680,26.48,207.57,207.5,4.81915255]
[1759146705886,26.48,207.57,207.52,0.66]
[1759146706574,30.81768399,207.57,207.5,4.81915255]
[1759146706880,31.29768399,207.57,207.5,0.66]
[1759146707265,26.0,207.55,207.5,0.66]
[1759146707883,26.0,207.55,207.51,0.66]
[1759146708387,26.0,207.55,207.51,5.47898482]
[1759146708567,0.48,207.54,207.48,20.30261909]
[1759146708774,26.48,207.54,207.48,20.30261909]
[1759146709781,31.29853618,207.54,207.48,20.30261909]
[1759146713900,31.29853618,207.54,207.47,37.12]
[1759146713901,26.0,207.5,207.47,37.12]
[1759146714072,26.48,207.5,207.47,37.12]
[1759146714269,26.0,207.5,207.47,37.12]
[1759146714595,26.0,207.55,207.48,0.67]
[1759146714962,26.0,207.55,207.49,2.23449704]
[1759146715158,26.0,207.57,207.5,0.67]
[1759146715580,26.0,207.58,207.5,0.67]
[1759146715782,13.59559401,207.59,207.5,0.67]
[1759146715973,18.41282226,207.59,207.51,16.86665702]
[1759146716175,26.0,207.59,207.52,37.81]
[1759146716363,26.0,207.59,207.53,0.67]
[1759146716873,26.0,207.6,207.53,0.67]
[1759146717266,30.8169634,207.6,207.53,0.67]
[1759146717766,0.48,207.59,207.52,37.81]
[1759146719274,5.29736454,207.59,207.53,5.4885606]
[1759146721994,30.8169671,207.6,207.54,0.67]
[1759146722480,26.0,207.6,207.54,0.67]
[1759146723696,26.0,207.6,207.55,4.81811611]
[1759146723999,26.0,207.6,207.56,0.67]
[1759146724195,0.48,207.59,207.53,0.67]
[1759146724674,0.48,207.58,207.52,37.14]
[1759146724875,30.81699363,207.6,207.51,84.78900132]
[1759146724876,26.48,207.57,207.51,4.81900132]
[1759146725180,26.48,207.57,207.48,37.14]
[1759146725181,26.0,207.52,207.48,37.14]
[1759146725380,26.0,207.52,207.46,14.24472099]
[1759146725381,26.0,207.52,207.46,19.06489971]
[1759146725595,4.81904486,207.51,207.46,37.14]
[1759146725776,0.48,207.5,207.46,37.14]
[1759146726679,5.29940265,207.5,207.46,37.14]
[1759146726877,5.29940265,207.5,207.44,5.4906277]
[1759146727190,26.0,207.47,207.44,37.18]
[1759146727789,26.0,207.47,207.42,0.67000001]
[1759146727970,26.0,207.47,207.42,1e-08]
[1759146728171,40.07559401,207.46,207.42,1e-08]
[1759146728591,26.0,207.43,207.42,1e-08]
[1759146729188,12.05016281,207.47,207.42,1e-08]
[1759146729189,26.48,207.47,207.42,1e-08]
[1759146729376,26.0,207.43,207.42,1e-08]
[1759146730197,26.0,207.43,207.42,0.67000001]
[1759146730405,13.59559401,207.47,207.42,0.67000001]
[1759146730698,26.0,207.46,207.42,0.67000001]
[1759146730897,26.0,207.46,207.43,0.67]
[1759146731103,26.0,207.46,207.42,4.8210228]
[1759146731296,26.0,207.46,207.42,5.4910228]
[1759146731596,0.48,207.45,207.42,1e-08]
[1759146731904,13.59559401,207.44,207.42,1e-08]
[1759146732404,26.48,207.43,207.42,1e-08]
[1759146732785,44.89649744,207.43,207.42,1e-08]
[1759146735596,44.41649744,207.43,207.42,1e-08]
[1759146736693,44.89649744,207.43,207.42,1e-08]
[1759146737888,44.41649744,207.43,207.42,1e-08]
[1759146738405,39.59559401,207.43,207.42,1e-08]
[1759146739505,26.0,207.44,207.42,0.70000001]
[1759146739686,13.59559401,207.47,207.42,0.70000001]
[1759146739888,18.415778,207.47,207.43,0.7]
[1759146740089,13.59559401,207.47,207.44,0.7]
[1759146740299,55.63487111,207.5,207.45,0.7]
[1759146740501,26.0,207.47,207.45,0.7]
[1759146740686,26.0,207.47,207.42,1e-08]
[1759146740890,26.0,207.47,207.43,0.7]
[1759146741109,18.41487111,207.5,207.44,0.69]
[1759146741311,26.0,207.47,207.45,4.82043865]
[1759146741501,13.59559401,207.51,207.46,0.69]
[1759146741700,26.0,207.48,207.46,0.69]
[1759146742010,26.0,207.48,207.47,0.69]
[1759146742705,2.71449704,207.54,207.47,0.69]
[1759146742706,13.59559401,207.54,207.47,0.69]
[1759146742907,26.0,207.51,207.47,0.69]
[1759146743307,26.0,207.51,207.48,4.81974166]
[1759146743606,13.59559401,207.54,207.48,4.81974166]
[1759146743607,39.59559401,207.54,207.49,0.69]
[1759146743810,13.59559401,207.56,207.49,0.69]
[1759146744003,39.59559401,207.56,207.49,0.69]
[1759146745094,18.4135089,207.56,207.49,0.69]
[1759146745305,18.4135089,207.56,207.5,4.8192771]
[1759146745508,44.4135089,207.56,207.51,0.69]
[1759146745912,39.59559401,207.56,207.5,4.8192771]
[1759146746109,26.0,207.56,207.52,0.69]
[1759146746314,37.22,207.59,207.52,0.69]
[1759146746503,13.59559401,207.59,207.52,0.69]
[1759146747323,13.59559401,207.61,207.53,4.81858044]
[1759146747492,26.0,207.58,207.54,0.69]
[1759146747821,0.48,207.57,207.52,4.8187941]
[1759146748319,0.48,207.56,207.49,0.69]
[1759146749311,31.29805312,207.56,207.49,5.50950937]
[1759146750114,0.48,207.55,207.48,42.72973969]
[1759146750606,0.48,207.55,207.49,0.69]
[1759146750999,30.81805312,207.56,207.49,0.69]
[1759146751220,26.0,207.56,207.49,0.69]
[1759146751525,26.0,207.56,207.5,4.8192771]
[1759146751705,26.0,207.56,207.51,0.69]
[1759146752108,30.81788467,207.56,207.52,0.69]
[1759146752804,30.81788467,207.56,207.5,5.5092771]
[1759146756319,31.29788467,207.56,207.5,0.69]
[1759146757123,0.48,207.55,207.48,42.72973785]
[1759146757310,13.59559401,207.54,207.48,42.72973785]
[1759146758306,18.41417092,207.54,207.48,42.72973785]
[1759146758509,13.59559401,207.54,207.48,42.72973785]
[1759146758702,26.0,207.56,207.49,0.69]
[1759146759140,30.81790541,207.56,207.49,0.69]
[1759146759421,26.0,207.56,207.49,0.69]
[1759146759727,18.41321181,207.58,207.49,0.69]
[1759146759903,68.0172099,207.59,207.49,0.69]
[1759146760218,30.8172099,207.59,207.49,0.69]
[1759146760422,30.8172099,207.59,207.5,16.86746987]
[1759146760628,30.8172099,207.59,207.51,0.69]
[1759146761228,26.0,207.59,207.51,0.69]
[1759146762028,0.48,207.62,207.51,0.69]
[1759146762228,37.2,207.63,207.51,0.69]
[1759146762527,26.0,207.6,207.52,16.86584425]
[1759146762826,26.0,207.6,207.53,0.69]
[1759146763827,30.81697033,207.6,207.53,0.69]
[1759146764234,26.0,207.6,207.53,0.69]
[1759146764817,26.0,207.6,207.54,4.81834827]
[1759146765024,26.0,207.6,207.54,5.50834827]
[1759146766029,26.0,207.6,207.54,4.81834827]
[1759146766329,26.0,207.6,207.55,0.69]
[1759146766526,31.29697685,207.6,207.54,4.81834827]
[1759146768038,26.48,207.6,207.54,5.50834827]
[1759146768433,26.48,207.6,207.54,17.55421894]
[1759146768616,26.0,207.6,207.55,0.69]
[1759146768817,26.0,207.6,207.56,0.69]
[1759146769334,26.48,207.6,207.54,17.55421894]
[1759146769515,26.48,207.6,207.56,4.81788398]
[1759146769917,26.0,207.6,207.56,4.81788398]
[1759146770131,0.48,207.59,207.56,4.81788398]
[1759146770331,0.48,207.59,207.55,4.81807695]
[1759146774246,0.48,207.59,207.55,19.3375401]
[1759146774737,0.48,207.59,207.53,0.72]
[1759146775132,5.29720095,207.59,207.53,37.86]
[1759146775337,30.81698525,207.6,207.54,0.72]
[1759146776734,30.81698525,207.6,207.55,4.81811611]
[1759146776933,31.29698525,207.6,207.55,5.53811611]
[1759146777446,0.48,207.59,207.55,5.53811611]
[1759146777650,30.81698525,207.6,207.55,5.53811611]
[1759146777854,31.29698525,207.6,207.55,5.53811611]
[1759146779244,30.81698525,207.6,207.55,4.81811611]
[1759146779451,30.81698525,207.6,207.56,0.72]
[1759146780341,26.0,207.61,207.57,0.72]
[1759146780657,26.0,207.6,207.57,0.72]
[1759146781249,30.816736,207.61,207.55,4.81807864]
[1759146781557,31.296736,207.61,207.55,5.53807864]
[1759146782426,26.0,207.59,207.53,37.14]
[1759146782625,13.59559401,207.57,207.5,0.72]
[1759146782934,26.0,207.54,207.47,4.81992736]
[1759146783143,0.48,207.53,207.47,4.81992736]
[1759146783934,5.29867532,207.53,207.47,5.53992736]
[1759146784141,0.48,207.53,207.47,5.53992736]
[1759146784343,26.48,207.53,207.47,5.53992736]
[1759146785034,26.0,207.53,207.47,4.81992736]
[1759146785240,26.0,207.52,207.48,0.72]
[1759146785632,26.0,207.54,207.48,0.72]
[1759146785827,26.0,207.54,207.49,4.81950937]
[1759146786046,26.0,207.54,207.5,0.72]
[1759146786330,26.0,207.54,207.51,0.72]
[1759146786533,26.0,207.54,207.52,0.72]
[1759146787537,26.0,207.55,207.52,0.72]
[1759146787735,5.29761379,207.58,207.52,0.72]
[1759146787939,31.29761379,207.58,207.52,5.53863738]
[1759146788537,26.48,207.58,207.52,5.53863738]
[1759146788742,18.89258454,207.6,207.53,0.72]
[1759146789350,44.89258454,207.6,207.53,0.72]
[1759146790055,26.0,207.6,207.54,4.81834827]
[1759146790266,26.0,207.6,207.55,0.72]
[1759146790639,26.0,207.6,207.56,0.72]
[1759146791344,0.48,207.59,207.52,42.69859837]
[1759146791570,26.0,207.57,207.5,41.9792424]
[1759146791945,26.0,207.55,207.5,42.6992424]
[1759146792143,26.48,207.55,207.5,37.88]
[1759146792342,26.48,207.54,207.47,14.87140874]
[1759146792647,0.48,207.53,207.47,52.05140874]
[1759146793161,0.48,207.53,207.47,56.87131074]
[1759146793668,26.0,207.54,207.48,0.65]
[1759146793975,30.81836393,207.54,207.49,4.81950937]
[1759146794176,30.81836393,207.54,207.48,0.65]
[1759146794476,31.29836393,207.54,207.48,0.65]
[1759146794771,31.29836393,207.54,207.47,56.15117738]
[1759146795152,31.29836393,207.54,207.48,0.65]
[1759146795570,31.29836393,207.54,207.47,56.15117738]
[1759146795877,4.81881264,207.52,207.47,56.15117738]
[1759146796183,4.81881264,207.52,207.47,37.18]
[1759146796364,5.29881264,207.52,207.47,41.99988454]
[1759146796566,5.29881264,207.52,207.47,42.64988454]
[1759146797079,4.81881264,207.52,207.47,42.64988454]
[1759146797265,4.81881264,207.52,207.48,0.65]
[1759146797459,31.29847249,207.54,207.48,0.65]
[1759146797872,26.0,207.54,207.48,5.46951622]
[1759146798077,31.29837281,207.54,207.48,4.81951622]
[1759146799184,31.29837281,207.54,207.48,5.46951622]
[1759146799572,26.0,207.54,207.49,0.65]
[1759146799786,26.0,207.54,207.5,0.65]
[1759146800468,31.29835155,207.54,207.48,5.46951622]
[1759146801076,30.81835155,207.54,207.49,0.69]
[1759146801282,30.81835155,207.54,207.5,0.69]
[1759146802058,26.0,207.53,207.48,4.81951622]
[1759146802261,30.81835155,207.54,207.48,4.81951622]
[1759146803282,30.81835155,207.54,207.48,5.50951622]
[1759146803788,31.29865524,207.53,207.47,41.99994045]
[1759146803955,0.48,207.52,207.47,41.99994045]
[1759146804161,4.81865524,207.53,207.48,0.69]
[1759146804355,4.81865524,207.53,207.49,0.69]
[1759146805869,0.48,207.54,207.49,0.69]
[1759146806471,4.81843551,207.54,207.5,0.69]
[1759146806960,4.81843551,207.54,207.48,4.81974166]
[1759146807169,5.29843551,207.54,207.48,5.50974166]
[1759146807760,4.81843551,207.54,207.49,5.50932365]
[1759146808065,4.81843551,207.54,207.5,0.69]
[1759146808268,30.81818622,207.55,207.51,0.69]
[1759146808584,0.48,207.54,207.49,4.81932365]
[1759146808880,0.48,207.54,207.49,5.50932365]
[1759146809378,0.48,207.54,207.48,4.81973247]
[1759146809575,0.48,207.54,207.49,0.69]
[1759146810201,5.29839484,207.54,207.49,5.50947726]
[1759146810684,4.81839484,207.54,207.5,0.69]
[1759146812180,4.81839484,207.54,207.48,4.81974166]
[1759146812396,4.81839484,207.54,207.47,37.87]
[1759146812397,26.0,207.52,207.47,37.87]
[1759146812688,26.48,207.52,207.47,37.87]
[1759146812882,26.48,207.52,207.47,37.18]
[1759146813061,26.48,207.52,207.48,0.69]
[1759146813262,26.0,207.52,207.48,0.69]
[1759146813470,26.0,207.52,207.49,0.69]
[1759146813682,26.0,207.52,207.47,42.68994029]
[1759146813997,26.0,207.52,207.48,0.69]
[1759146817284,26.0,207.53,207.48,5.50971716]
[1759146817483,26.0,207.52,207.49,0.69]
[1759146820078,26.0,207.53,207.48,4.81971716]
[1759146820265,31.29858265,207.53,207.48,5.50971716]
[1759146820787,31.29858265,207.53,207.48,4.81971716]
[1759146820994,26.0,207.52,207.49,0.69]
[1759146821491,26.0,207.53,207.49,0.69]
[1759146821674,26.0,207.52,207.49,0.69]
[1759146822387,0.48,207.52,207.48,4.81971716]
[1759146822780,26.0,207.53,207.49,0.69]
[1759146823089,26.0,207.52,207.49,0.69]
[1759146823291,26.48,207.53,207.49,0.69]
[1759146824300,31.29863943,207.53,207.49,0.69]
[1759146824485,31.29863943,207.53,207.47,37.77]
[1759146824687,31.29863943,207.53,207.47,42.58984024]
[1759146825493,26.48,207.53,207.47,42.58984024]
[1759146825795,26.0,207.53,207.48,0.69]
[1759146827181,26.0,207.53,207.49,4.81950937]
[1759146827496,26.0,207.56,207.5,0.69]
[1759146828298,0.48,207.55,207.47,37.08]
[1759146828502,0.48,207.55,207.48,0.69]
[1759146828999,0.48,207.54,207.49,37.06]
[1759146829208,0.48,207.54,207.49,37.75]
[1759146829398,4.81858044,207.53,207.49,37.75]
[1759146830698,4.81858044,207.53,207.49,0.69]
[1759146830900,26.48,207.52,207.43,4.82090343]
[1759146831097,14.07559401,207.51,207.44,0.71]
[1759146831303,14.07559401,207.51,207.43,4.82090343]
[1759146831500,13.59559401,207.49,207.43,4.82090343]
[1759146831801,14.07559401,207.49,207.43,4.82090343]
[1759146832191,4.81974166,207.48,207.43,4.82090343]
[1759146832396,5.29974166,207.48,207.43,5.53090343]
[1759146833301,31.29974166,207.48,207.43,5.53090343]
[1759146834597,26.0,207.48,207.43,5.53090343]
[1759146834802,26.0,207.48,207.44,0.71]
[1759146834994,26.0,207.48,207.45,0.71]
[1759146836204,26.0,207.5,207.46,0.71]
[1759146836507,26.0,207.5,207.45,4.8203254]
[1759146836508,26.0,207.51,207.47,0.71]
[1759146836908,26.48,207.51,207.45,4.8203254]
[1759146837207,4.81863297,207.53,207.46,0.71]
[1759146838106,4.81863297,207.53,207.47,4.81997397]
[1759146838502,26.0,207.54,207.48,0.71]
[1759146838889,30.81842287,207.54,207.48,0.71]
[1759146839206,0.48,207.53,207.48,0.71]
[1759146839406,0.48,207.52,207.47,41.87997397]
[1759146839586,0.48,207.52,207.47,42.58997397]
[1759146839998,0.48,207.52,207.47,37.77]
[1759146840308,5.29885074,207.52,207.47,0.71]
[1759146841014,5.29885074,207.52,207.47,5.52989129]
[1759146842012,5.29885074,207.52,207.47,0.71]
[1759146844693,26.0,207.5,207.45,0.71]
[1759146844901,26.48,207.49,207.44,37.04]
[1759146845099,0.48,207.48,207.44,37.04]
[1759146845392,26.0,207.49,207.44,37.75]
[1759146845597,26.0,207.49,207.45,0.71]
[1759146846500,26.0,207.49,207.46,0.71]
[1759146847019,26.0,207.49,207.47,0.71]
[1759146847394,26.0,207.49,207.48,0.71]
[1759146847616,28.09500195,207.53,207.48,0.71]
[1759146847617,32.91377716,207.53,207.48,0.71]
[1759146847926,26.0,207.52,207.49,0.71]
[1759146848419,26.0,207.52,207.47,0.71]
[1759146848613,30.8188237,207.52,207.48,0.71]
[1759146848918,31.2988237,207.52,207.48,0.71]
[1759146849287,30.8188237,207.52,207.48,0.71]
[1759146849512,31.2988237,207.52,207.47,4.81988203]
[1759146849818,30.8188237,207.52,207.48,0.71]
[1759146849994,31.2988237,207.52,207.48,0.71]
[1759146851513,26.0,207.51,207.49,0.71]
[1759146851817,26.0,207.51,207.48,4.81970623]
[1759146852006,26.0,207.51,207.49,0.71]
[1759146853502,26.0,207.51,207.5,0.66]
[1759146854301,26.0,207.51,207.48,5.47970623]
[1759146854598,26.0,207.51,207.49,0.66]
[1759146854917,26.0,207.51,207.5,0.66]
[1759146855306,34.07120709,207.55,207.5,0.66]
[1759146855514,30.81815948,207.55,207.51,0.66]
[1759146855922,31.29815948,207.55,207.49,0.66]
[1759146856098,31.29815948,207.55,207.46,12.05047381]
[1759146856099,5.29841869,207.54,207.47,0.66]
[1759146856414,5.29841869,207.54,207.48,0.66]
[1759146856919,4.81841869,207.54,207.48,0.66]
[1759146857097,4.81841869,207.54,207.48,5.47962556]
[1759146857293,4.81841869,207.54,207.49,0.66]
[1759146857518,4.81841869,207.54,207.5,0.66]
[1759146858904,0.48,207.53,207.47,4.81980582]
[1759146859121,0.48,207.53,207.47,5.47980582]
[1759146860229,0.48,207.53,207.48,0.66]
[1759146860612,4.81859243,207.53,207.45,4.82043865]
[1759146860813,0.48,207.52,207.46,0.66]
[1759146861616,4.81839382,207.54,207.46,0.66]
[1759146862226,5.29839382,207.54,207.47,4.81997397]
[1759146862429,5.29839382,207.54,207.48,0.68]
[1759146863127,38.05047381,207.55,207.48,0.68]
[1759146863510,0.48,207.54,207.48,0.68]
[1759146864920,30.81819544,207.55,207.49,4.81950937]
[1759146865232,30.81819544,207.55,207.49,5.49950937]
[1759146865534,30.81819544,207.55,207.5,0.68]
[1759146865735,26.0,207.55,207.5,0.68]
[1759146866626,26.0,207.55,207.49,4.81950937]
[1759146866627,30.81815625,207.55,207.51,0.68]
[1759146867210,37.04,207.58,207.52,0.68]
[1759146867418,40.29227087,207.58,207.52,0.68]
[1759146867616,37.04,207.58,207.52,0.68]
[1759146867819,66.29227087,207.58,207.52,0.68]
[1759146868018,63.04,207.58,207.52,0.68]
[1759146868218,67.85745872,207.58,207.52,5.4986381]
[1759146868826,30.81745872,207.58,207.52,5.4986381]
[1759146869320,34.06944437,207.58,207.52,5.4986381]
[1759146870437,34.06944437,207.58,207.53,0.68]
[1759146870438,26.0,207.58,207.53,0.68]
[1759146871017,26.0,207.58,207.54,0.68]
[1759146871218,26.0,207.58,207.47,2.23466814]
[1759146871427,26.0,207.58,207.55,0.68]
[1759146871621,26.0,207.58,207.47,81.53466814]
[1759146871827,26.0,207.58,207.54,0.68]
[1759146872252,0.48,207.6,207.55,0.68]
[1759146872421,14.4931037,207.61,207.56,5.49788398]
[1759146872621,0.48,207.6,207.53,0.68]
[1759146872955,0.48,207.59,207.53,0.68]
[1759146873942,4.81718772,207.59,207.54,4.81834827]
[1759146874140,4.81718772,207.59,207.53,0.68]
[1759146874141,0.48,207.58,207.51,4.81902884]
[1759146874347,30.81718772,207.59,207.51,4.81902884]
[1759146874348,0.48,207.57,207.51,4.81902884]
[1759146874651,0.48,207.57,207.51,4.99902884]
[1759146876031,5.29780205,207.57,207.51,4.99902884]
[1759146877623,38.04296931,207.59,207.52,0.68]
[1759146877624,4.81743613,207.58,207.52,0.68]
[1759146878449,31.29724652,207.59,207.52,0.68]
[1759146878634,30.81724652,207.59,207.52,0.68]
[1759146879534,30.81724652,207.59,207.53,4.81858044]
[1759146879927,30.81724652,207.59,207.53,5.49858044]
[1759146881244,30.81724652,207.59,207.53,0.68]
[1759146881458,0.48,207.58,207.53,0.68]
[1759146881637,0.48,207.57,207.53,0.68]
[1759146881944,26.0,207.55,207.49,0.68]
[1759146882323,26.0,207.54,207.49,0.68]
[1759146882756,26.48,207.54,207.49,0.68]
[1759146883043,26.48,207.54,207.5,0.68]
[1759146883456,26.48,207.54,207.47,4.81997397]
[1759146883641,0.48,207.53,207.48,0.68]
[1759146884028,0.48,207.52,207.47,4.81997397]
[1759146884229,0.48,207.52,207.47,5.49997397]
[1759146885147,4.81894717,207.52,207.47,0.68]
[1759146885752,5.29894717,207.52,207.47,0.68]
[1759146886434,5.29894717,207.52,207.46,41.86018285]
[1759146886772,5.29894717,207.52,207.47,0.68]
[1759146886937,30.81894717,207.52,207.47,0.68]
[1759146887126,31.29894717,207.52,207.47,0.68]
[1759146887747,0.48,207.51,207.46,37.04]
[1759146887949,0.48,207.5,207.46,37.04]
[1759146888143,5.29942469,207.5,207.46,37.04]
[1759146888347,0.48,207.49,207.46,37.04]
[1759146888660,26.48,207.49,207.43,5.50089302]
[1759146888954,0.48,207.48,207.42,56.39981175]
[1759146889128,0.48,207.48,207.42,52.25870582]
[1759146889330,26.0,207.49,207.42,52.25870582]
[1759146889636,26.48,207.49,207.43,0.68]
[1759146890350,4.81974166,207.48,207.43,0.68]
[1759146890547,4.81974166,207.48,207.44,0.68]
[1759146891843,30.81951774,207.49,207.45,0.72]
[1759146892047,31.29951774,207.49,207.43,0.72]
[1759146894240,31.29951774,207.49,207.43,5.5407627]
[1759146894761,31.29951774,207.49,207.44,0.72]
[1759146895657,26.0,207.48,207.45,0.72]
[1759146897238,26.48,207.48,207.43,0.72]
[1759146897438,26.0,207.48,207.44,0.72]
[1759146899051,26.48,207.48,207.44,0.72]
[1759146899253,31.29974671,207.48,207.44,0.72]
[1759146899761,26.0,207.48,207.45,0.72]
[1759146899954,0.48,207.47,207.43,4.82080659]
[1759146900147,0.48,207.47,207.42,56.39984014]
[1759146900348,0.48,207.47,207.42,52.29870582]
[1759146901365,0.48,207.47,207.42,51.57870582]
[1759146901566,5.2999933,207.47,207.43,0.72]
[1759146901782,26.0,207.48,207.44,0.72]
[1759146901943,30.81977225,207.48,207.44,0.72]
[1759146902568,30.81977225,207.48,207.45,0.72]
[1759146903376,26.0,207.48,207.45,0.72]
[1759146903968,30.81976615,207.48,207.42,52.29870582]
[1759146904157,30.81976615,207.48,207.44,0.72]
[1759146904352,30.81976615,207.48,207.42,51.57870582]
[1759146904557,26.0,207.48,207.43,0.72]
[1759146904760,26.0,207.48,207.42,56.3998027]
[1759146905059,26.0,207.48,207.44,0.72]
[1759146906173,30.8198024,207.48,207.43,4.82078495]
[1759146906475,31.2998024,207.48,207.43,5.54078495]
[1759146906651,31.2998024,207.48,207.43,4.82078495]
[1759146906973,31.2998024,207.48,207.44,0.72]
[1759146907171,30.8198024,207.48,207.42,57.11979813]
[1759146907473,31.2998024,207.48,207.42,57.11979813]
[1759146907846,31.2998024,207.48,207.42,56.39979813]
[1759146908051,31.2998024,207.48,207.43,0.72]
[1759146908466,31.2998024,207.48,207.44,0.72]
[1759146908972,30.8198024,207.48,207.44,5.54065674]
[1759146909162,26.0,207.48,207.44,5.54065674]
[1759146909356,26.0,207.48,207.45,0.72]
[1759146909753,26.0,207.48,207.44,4.82065674]
[1759146909754,1.43047286,207.5,207.46,0.72]
[1759146909971,26.0,207.49,207.47,0.72]
[1759146910454,26.0,207.49,207.44,41.86065674]
[1759146910655,26.0,207.49,207.45,0.72]
[1759146910856,26.0,207.49,207.46,0.72]
[1759146911454,26.0,207.49,207.45,4.82042871]
[1759146911651,26.0,207.49,207.46,0.72]
[1759146912347,26.0,207.49,207.45,4.82042871]
[1759146912775,26.0,207.49,207.46,0.72]
[1759146912948,26.0,207.49,207.46,5.54019338]
[1759146913150,26.0,207.49,207.47,0.72]
[1759146913777,26.0,207.49,207.46,4.82019338]
[1759146913981,26.0,207.49,207.46,0.65]
[1759146915189,26.0,207.49,207.47,0.65]
[1759146917481,14.4987072,207.53,207.48,0.65]
[1759146917482,26.0,207.53,207.48,0.65]
[1759146917676,4.81839596,207.54,207.48,0.65]
[1759146917879,26.48,207.52,207.48,0.65]
[1759146918080,0.48,207.51,207.46,0.65]
[1759146918284,0.48,207.5,207.45,4.82030025]
[1759146918483,0.48,207.5,207.45,5.47030025]
[1759146919290,0.48,207.5,207.46,0.65]
[1759146919999,4.81950937,207.49,207.44,42.51065356]
[1759146920170,5.29950937,207.49,207.44,5.47065356]
[1759146920366,5.29950937,207.49,207.45,37.69]
[1759146922167,4.81950937,207.49,207.46,0.71]
[1759146923189,4.81950937,207.49,207.45,37.04]
[1759146923491,0.48,207.48,207.44,37.04]
[1759146923883,19.79961812,207.49,207.44,37.75]
[1759146924279,26.0,207.49,207.45,0.71]
[1759146924998,26.0,207.51,207.45,0.71]
[1759146925186,26.0,207.5,207.45,0.71]
[1759146927298,26.0,207.5,207.46,4.8202063]
[1759146927493,26.0,207.5,207.47,0.71]
[1759146927992,26.0,207.5,207.46,4.8202063]
[1759146928187,26.0,207.5,207.46,5.5302063]
[1759146928499,26.0,207.5,207.47,0.71]
[1759146928798,26.0,207.5,207.46,4.8202063]
[1759146929003,26.0,207.5,207.46,5.5302063]
[1759146929907,26.48,207.5,207.46,5.5302063]
[1759146930400,26.0,207.5,207.46,5.5302063]
[1759146931599,31.29930595,207.5,207.44,41.86045735]
[1759146931791,0.48,207.49,207.44,0.71]
[1759146932001,0.48,207.48,207.44,37.02]
[1759146932681,0.48,207.48,207.44,37.73]
[1759146933395,4.81974166,207.48,207.44,37.73]
[1759146934598,5.29974166,207.48,207.44,37.02]
[1759146935079,31.29974166,207.48,207.44,37.02]